[Event "44th Chess Olympiad Open 2022"]
[Site "Chennai"]
[Date "2022.07.29"]
[Round "1.23"]
[White "Markus, Robert"]
[Black "Pace, Colin"]
[Result "1-0"]
[WhiteElo "2616"]
[BlackElo "2159"]
[Annotator "TA"]
[PlyCount "73"]
[EventDate "2022.??.??"]
[TimeControl "60"]

{[%evp 10,73,33,27,33,26,28,34,43,20,32,14,57,14,13,17,79,79,70,68,74,77,65,49,
126,95,100,44,99,39,45,0,110,54,76,25,44,37,37,35,45,45,39,35,37,51,48,33,39,
32,27,27,125,129,120,64,87,48,342,323,446,431,678,642,1189,1114]} 1. d4 {
[%emt 0:00:05]} f5 {[%emt 0:00:10]} 2. Bg5 {[%emt 0:00:13]} h6 {[%emt 0:00:06]}
3. Bh4 {[%emt 0:00:06]} g5 {[%emt 0:00:15]} 4. e3 {[%emt 0:00:27]} Nf6 {
[%emt 0:00:07]} 5. Bg3 {[%emt 0:00:06]} d6 {[%emt 0:01:01]} 6. Nc3 {[%emt 0:00:
00]} e6 {[%emt 0:05:57] A80: Dutch Defence: Unusual White second moves.} 7. h4
Rg8 {[%emt 0:02:22]} 8. hxg5 {[%emt 0:00:15]} hxg5 {[%emt 0:01:51] White is
slightly better.} 9. Qd2 {[%emt 0:04:58]} Bd7 {[%emt 0:03:45]} 10. O-O-O {
[%emt 0:02:56]} Qe7 {[%emt 0:01:19]} 11. f3 {[%emt 0:04:09]} Nc6 {[%emt 0:00:
00]} 12. e4 $36 {White fights for an advantage.} f4 {[%emt 0:01:47]} (12...
fxe4 $11 {remains equal.} 13. fxe4 (13. Nxe4 g4 $11) 13... O-O-O) 13. Bf2 $16 {
[%emt 0:04:14][%cal Ye4e5]} a6 {[%emt 0:02:58]} 14. Nge2 {[%emt 0:00:00]} Bg7 {
[%emt 0:17:23]} 15. g3 {[%emt 0:06:29] [#]} fxg3 $146 {[%emt 0:01:58]} ({
Predecessor:} 15... e5 16. gxf4 gxf4 17. dxe5 Nxe5 18. Nxf4 O-O-O 19. Qe3 c5
20. Be2 Bc6 21. Nfd5 Qf7 {1-0 (41) Delchev,A (2568)-Beerdsen,T (2482) Anogia
2019}) 16. Nxg3 {[%emt 0:00:07]} Bh8 {[%emt 0:04:39]} (16... Qf7 $14) 17. Be3 {
[%emt 0:06:12]} O-O-O {[%emt 0:09:29]} 18. Bc4 {[%emt 0:07:16]} (18. Bxg5 Nxd4
19. Qxd4 (19. Rxh8 Nxf3 20. Rxg8 Rxg8 $11) 19... Rxg5 $11) (18. Nce2 $16) 18...
Qf7 {[%emt 0:06:38]} (18... g4 $14) 19. Nf5 {[%emt 0:09:28] White is more
active.} ({White should play} 19. Bxg5 $16 {aiming for Nf5.} Rdf8 20. Nge2)
19... Rg6 $1 $14 {[%emt 0:08:52]} 20. Ng3 {[%emt 0:06:16]} (20. Bb3 $14) 20...
Rgg8 $1 $16 {[%emt 0:02:02]} 21. Bb3 {[%emt 0:05:42]} (21. Bxg5 $16 Rdf8 22.
Nge2) 21... Qg6 {[%emt 0:02:58] Prevents Nf5.} 22. Nce2 {[%emt 0:05:53]} ({
Better is} 22. a3 $16) 22... Rdf8 $11 {[%emt 0:03:35]} 23. c4 {[%emt 0:04:21]}
g4 {[%emt 0:03:41]} 24. f4 {[%emt 0:03:46] Threatens to win with e5.} Nxe4 {
[%emt 0:02:28]} 25. Nxe4 {[%emt 0:00:05]} Qxe4 {[%emt 0:00:09]} 26. Bc2 {
[%emt 0:00:44]} Qf3 {[%emt 0:04:04]} 27. Rdf1 {[%emt 0:02:46]} Qg2 {[%emt 0:00:
00]} 28. Rfg1 $1 {[%emt 0:00:51]} Qf3 {[%emt 0:00:10]} 29. Ng3 {[%emt 0:00:32]
Be4 is the strong threat.} Bxd4 $1 {[%emt 0:03:30]} 30. Bxd4 {[%emt 0:00:08]}
Rxf4 {[%emt 0:01:20] [#]} (30... Nxd4 $11 31. Qxd4 Qxf4+ 32. Qxf4 Rxf4) 31. Bc3
$1 $16 {[%emt 0:09:22] Black must now prevent Rf1. This bishop pair is nice.} (
{Much worse is} 31. Ne2 $6 Nxd4 32. Nxd4 (32. Nxf4 Qxf4 33. Qxf4 Ne2+ 34. Kd2
Nxf4 $17) 32... Qf2 $11) 31... Rxc4 {[%emt 0:02:04]} 32. Nh5 {[%emt 0:01:33]} (
{White should try} 32. Bd1 $16 Qd5 33. Qxd5 (33. Bb3 Qxd2+ 34. Kxd2 Rf4 $11)
33... exd5 34. Bb3) 32... g3 {[%emt 0:01:36]} 33. Qd3 {[%emt 0:02:44] White
has strong compensation.} Qd5 {[%emt 0:03:21] [#] Loses the game.} (33... Ne5
$14 34. Qxf3 Nxf3 35. Rxg3 Rxg3 36. Nxg3 Rh4) 34. Nf6 $1 $18 {[%emt 0:01:59]} (
{Not} 34. Nxg3 Qxd3 35. Bxd3 Rcg4 $14) 34... Qg5+ {[%emt 0:00:38]} 35. Kb1 {
[%emt 0:00:05] White is clearly winning.} g2 {[%emt 0:00:00]} (35... Rxc3 $142
36. Qxc3 Rd8 37. Rxg3 Qf4) 36. Rh5 {[%emt 0:00:38]} Rxc3 {[%emt 0:00:38]} 37.
Rxg5 {[%emt 0:00:22] Weighted Error Value: White=0.14 (very precise) /Black=0.
46} 1-0

[Event "44th Chess Olympiad Open 2022"]
[Site "Chennai"]
[Date "2022.07.29"]
[Round "1.23"]
[White "Perunovic, Milos"]
[Black "Mizzi, Jack"]
[Result "1-0"]
[WhiteElo "2539"]
[BlackElo "1913"]
[Annotator "TA"]
[PlyCount "106"]
[EventDate "2022.??.??"]
[TimeControl "60"]

{[%evp 9,106,18,28,18,19,8,0,0,20,12,8,2,29,31,37,37,70,65,92,95,129,103,181,
106,103,116,154,122,315,301,297,308,355,339,385,307,427,434,400,378,354,336,
411,402,487,389,391,381,395,343,346,294,306,287,277,287,279,177,268,262,275,
170,182,193,188,163,186,176,177,173,234,227,420,419,415,424,416,423,527,416,
354,252,587,618,587,368,368,369,364,366,370,379,371,367,661,625,29975,29978,
29986]} 1. e4 {[%emt 0:00:07]} c6 {[%emt 0:00:13]} 2. d4 {[%emt 0:00:16]} d5 {
[%emt 0:00:13]} 3. e5 {[%emt 0:00:17]} c5 {[%emt 0:00:15]} 4. Nf3 {[%emt 0:00:
00]} cxd4 {[%emt 0:00:27]} 5. Nxd4 {[%emt 0:00:35]} e6 {[%emt 0:00:27]} 6. Nd2
{[%emt 0:03:33] B12: Caro-Kann: Advance Variation.} Nc6 {[%emt 0:02:22]} 7.
Nxc6 {[%emt 0:00:20]} bxc6 {[%emt 0:00:10]} 8. Bd3 {[%emt 0:01:24] [#] The
position is equal.} Qc7 $146 {[%emt 0:04:33]} ({Predecessor:} 8... Ne7 9. Nf3
a5 10. O-O Ng6 11. Re1 Ba6 12. Bxg6 hxg6 13. Bg5 Qb6 14. Rb1 c5 15. b3 Be7 16.
Bxe7 Kxe7 17. Qd2 {½-½ (17) Paravyan,D (2617)-Alekseenko,K (2698) Chess.com
INT 2022}) 9. Nf3 {[%emt 0:01:04]} Ne7 {[%emt 0:03:12]} 10. O-O {[%emt 0:09:32]
} Ng6 {[%emt 0:00:42]} 11. Re1 {[%emt 0:00:23]} Be7 {[%emt 0:00:42]} 12. c3 {
[%emt 0:04:15][%cal Yc2c3,Yc3d4,Yd4c5]} Bb7 {[%emt 0:06:51]} 13. Qa4 {[%emt 0:
12:38]} a5 {[%emt 0:07:25]} 14. h4 {[%emt 0:00:00] White is more active.} Bc5 {
[%emt 0:03:35]} 15. Qg4 {[%emt 0:00:00]} Qb6 {[%emt 0:03:15]} (15... Bf8 $16)
16. Nd4 {[%emt 0:03:42]} ({Better is} 16. Be3 $18) 16... Bxd4 $16 {[%emt 0:06:
17]} 17. cxd4 {[%emt 0:00:43]} Qb4 {[%emt 0:05:02]} 18. Be3 {[%emt 0:05:49]}
O-O-O $2 {[%emt 0:22:02] This costs Black the game.} (18... Kf8 $16) 19. a3 {
[%emt 0:07:54]} Qb3 {[%emt 0:00:00]} 20. Red1 {[%emt 0:02:56]} c5 {[%emt 0:08:
18]} 21. h5 {[%emt 0:01:16]} (21. dxc5 Nxe5 22. Qd4 Nxd3 $16) (21. Bg5 c4 22.
h5 Rd7 $18) 21... Ne7 {[%emt 0:02:18]} 22. dxc5 {[%emt 0:06:52]} d4 {[%emt 0:
03:14]} 23. Bg5 {[%emt 0:00:27]} f6 {[%emt 0:01:03]} 24. Bf4 {[%emt 0:00:00]} (
24. exf6 gxf6 25. Bxf6 Rhg8 $18) 24... f5 {[%emt 0:05:14]} 25. Qe2 {[%emt 0:02:
59]} (25. Qxg7 Qd5 26. Kf1 Rde8 $11) 25... Qd5 {[%emt 0:02:35][%csl Gb7][%cal
Rd5g2]} 26. f3 {[%emt 0:00:40]} Nc6 {[%emt 0:01:19]} 27. Bc4 {[%emt 0:01:23]}
Qxc5 {[%emt 0:00:23] Threatens to win with ...d3+.} 28. Bxe6+ {[%emt 0:00:10]
This bishop pair is nice.} Kb8 {[%emt 0:00:06]} 29. Qc4 {[%emt 0:06:23]} Qb6 {
[%emt 0:00:40]} 30. Rd3 {[%emt 0:03:16]} (30. Bxf5 Rdf8 31. e6+ Ka8 $11) 30...
Ba6 {[%emt 0:06:11]} 31. Qb3 {[%emt 0:02:02]} Qxb3 {[%emt 0:01:00]} 32. Rxb3+ {
[%emt 0:00:06]} Ka7 {[%emt 0:01:39]} 33. a4 {[%emt 0:00:20]} (33. Bxf5 Rhf8 34.
g4 Bc4 $14) 33... Nb4 {[%emt 0:03:15]} (33... Rhe8 {was necessary.}) 34. Rc1
$18 {[%emt 0:01:42]} (34. Bxf5 Rdf8 35. Rd1 (35. g4 g6 $15) 35... Rxf5 36. Rxd4
Re8 $11) 34... Kb6 {[%emt 0:01:34]} 35. Bd2 {[%emt 0:01:38]} (35. Bxf5 $6 Rdf8
$18) 35... Rhe8 {[%emt 0:00:30]} 36. Bxf5 {[%emt 0:02:32] f4 is the strong
threat.} Rxe5 {[%emt 0:00:16]} 37. Be4 $36 {[%emt 0:00:06] Black is under
strong pressure.} (37. Bxh7 $6 Rxh5 38. Bg6 Rc5 $16) 37... Rc5 {[%emt 0:00:58]
[#]} 38. Rxc5 $1 {[%emt 0:00:00]} (38. Bxh7 $6 Rxc1+ 39. Bxc1 Re8 $16) 38...
Kxc5 {[%emt 0:00:03]} 39. Ra3 {[%emt 0:00:44]} (39. Bxh7 Bc4 40. Ra3 Re8 $16)
39... Re8 {[%emt 0:00:55]} (39... h6 $142 40. Ra1 Bc4) 40. Ra1 {[%emt 0:00:20]}
(40. Bxh7 Re2 41. Bg5 Nd5 $14) 40... d3 $2 {[%emt 0:00:23]} (40... Kc4 {
keeps fighting.} 41. Re1 (41. Bxh7 Kb3 $16) 41... Re7) 41. Rc1+ {[%emt 0:31:30]
} Nc2 {[%emt 0:04:29]} 42. Bxa5 {[%emt 0:00:00]} Rb8 {[%emt 0:06:09]} 43. Bc3 {
[%emt 0:00:00]} Nd4 {[%emt 0:01:36] aiming for ...Ne2+.} 44. Bd2+ {[%emt 0:00:
00]} Nc2 {[%emt 0:00:00]} 45. b4+ {[%emt 0:00:00][%cal Yb2b4,Yb4b5]} ({But not
} 45. Bxh7 Rxb2 46. Bc3 Rb7 $18) 45... Kd4 $2 {[%emt 0:00:44]} (45... Rxb4 46.
Bc3 (46. Bxh7 Rxa4 47. Bc3 Nd4 $16) (46. Bxb4+ Kxb4 47. Rxc2 dxc2 $18) 46...
Rxa4 47. Bxg7 Rxe4 48. fxe4 Bb7) 46. b5 {[%emt 0:00:00]} Bb7 {[%emt 0:01:38]}
47. Bxb7 {[%emt 0:00:00]} Rxb7 {[%emt 0:00:07] Endgame KRB-KRN} 48. Rb1 {
[%emt 0:00:00] Strongly threatening a5.} Na3 {[%emt 0:00:48]} 49. Rb4+ {
[%emt 0:00:00]} Nc4 {[%emt 0:00:22]} 50. a5 {[%emt 0:00:00][%cal Ya4a5,Ya5a6]
And now a6 would win.} Kc5 {[%emt 0:01:09]} 51. a6 {[%emt 0:00:00] Rxc4+ would
kill now.} Re7 $2 {[%emt 0:03:27] [#]} (51... Rxb5 52. a7 Nb6 53. Rxb5+ Kxb5)
52. Rxc4+ $1 {[%emt 0:00:00]} Kxc4 {[%emt 0:00:17]} (52... Kxb5 53. Rd4) 53. b6
{[%emt 0:00:00]} Kd5 {[%emt 0:00:32] Weighted Error Value: White=0.22 (precise)
/Black=0.56} 1-0

[Event "44th Chess Olympiad Open 2022"]
[Site "Chennai"]
[Date "2022.07.29"]
[Round "1.23"]
[White "Darmanin, Jake"]
[Black "Ivic, Velimir"]
[Result "0-1"]
[WhiteElo "2101"]
[BlackElo "2581"]
[Annotator "TA"]
[PlyCount "84"]
[EventDate "2022.??.??"]
[TimeControl "60"]

{[%evp 9,84,55,38,-22,-5,-31,-7,-27,-26,-19,-10,-32,0,-40,-18,-23,-14,-33,0,-4,
0,-2,0,0,0,0,0,-5,-6,-7,-4,-12,-1,-18,-16,-146,-136,-135,-150,-154,-134,-134,
-137,-236,-236,-236,-236,-235,-214,-235,-235,-219,-229,-367,-373,-367,-360,
-374,-367,-445,-370,-789,-710,-902,-909,-846,-688,-5561,-4849,-29963,-29962,
-12522,-5139,-29976,-29977,-29966,-29959]} 1. e4 {[%emt 0:00:06][%cal Ye2e4,
Ye4d5]} c5 {[%emt 0:00:12]} 2. c3 {[%emt 0:00:09]} d5 {[%emt 0:02:40]} 3. exd5
{[%emt 0:01:16]} Nf6 {[%emt 0:02:21]} 4. d4 {[%emt 0:02:58]} cxd4 {[%emt 0:15:
26]} 5. Bb5+ {[%emt 0:15:31]} Bd7 {[%emt 0:00:00]} 6. Bxd7+ {[%emt 0:01:00]
B22: Sicilian: 2 c3.} (6. Bc4 $1 $14) 6... Qxd7 $11 {[%emt 0:00:00]} 7. Qxd4 {
[%emt 0:04:01]} Qxd5 {[%emt 0:00:00]} 8. Qxd5 {[%emt 0:05:56] The position is
equal.} (8. Nf3 {looks sharper.} Nc6 9. Qa4 e6 10. O-O) 8... Nxd5 {[%emt 0:00:
00]} 9. Nf3 {[%emt 0:00:22]} Nc6 {[%emt 0:00:00] [#]} 10. O-O $146 {[%emt 0:08:
36]} ({Predecessor:} 10. Na3 g6 11. Bg5 h6 12. Bd2 Bg7 13. Rd1 Rd8 14. O-O O-O
15. Bc1 e5 16. Rfe1 {½-½ (48) Lazar,A (2117)-Basagic,Z (2338) Ljubljana 2000}
) 10... e5 {[%emt 0:00:00][%cal Ye7e5,Ye5e4]} 11. Nbd2 {[%emt 0:03:28]} (11. c4
$5 {[%cal Rc4d5]} Ndb4 12. Nc3 $11) 11... O-O-O {[%emt 0:03:24]} 12. Nc4 {
[%emt 0:05:04]} f6 {[%emt 0:01:12]} 13. a4 {[%emt 0:00:00]} e4 {[%emt 0:10:27]}
14. Nfd2 {[%emt 0:06:05]} f5 {[%emt 0:01:45]} 15. Nb3 {[%emt 0:01:59]} Be7 {
[%emt 0:02:07] Prevents Bg5.} 16. f3 {[%emt 0:05:49]} exf3 {[%emt 0:06:18]} 17.
Rxf3 {[%emt 0:00:06]} g6 {[%emt 0:01:13]} 18. Bd2 {[%emt 0:06:10]} Rhe8 {
[%emt 0:03:12]} 19. Re1 {[%emt 0:01:07]} Nf6 {[%emt 0:00:00]} 20. Be3 {[%emt 0:
09:29]} Bf8 {[%emt 0:04:04]} 21. Rff1 {[%emt 0:00:03]} Re4 {[%emt 0:05:20]} 22.
Nbd2 {[%emt 0:06:48] [#] Black continues to play with concentration.} (22. Rf4
$11 {keeps the balance.}) 22... Rxd2 $1 $17 {[%emt 0:00:00]} 23. Nxd2 {[%emt 0:
04:33] [#]} Rxe3 {[%emt 0:00:07]} 24. Rxe3 {[%emt 0:00:01]} Bc5 {[%emt 0:00:08]
} 25. Nc4 {[%cal Yg1h1] And now Kh1! would win.} Ng4 {[%emt 0:04:20] Pin} 26.
h3 {[%emt 0:00:59]} (26. Rfe1 $17 f4 27. Kf1 (27. Nd6+ Kd7 $17) 27... Nxe3+ 28.
Nxe3 Bxe3 29. Rd1) 26... Nxe3 $19 {[%emt 0:01:10]} 27. Nxe3 {[%emt 0:03:47]}
Bxe3+ {[%emt 0:00:03]} 28. Kh1 {[%emt 0:00:22]} Kd7 {[%emt 0:00:59]} 29. Rd1+ {
[%emt 0:01:13]} Ke6 {[%emt 0:00:41]} 30. b4 {[%emt 0:00:00]} a6 {[%emt 0:03:42]
} 31. b5 {[%emt 0:00:00]} (31. g3 {might work better.} Bg5 32. b5 axb5 33. axb5
) 31... axb5 {[%emt 0:00:17]} 32. axb5 {[%emt 0:00:01]} Ne5 {[%emt 0:00:20]}
33. Rd8 {[%emt 0:00:20]} b6 {[%emt 0:01:28]} 34. g3 {[%emt 0:01:02]} h5 {
[%emt 0:06:07] ...g5 is the strong threat.} 35. Kg2 $2 {[%emt 0:00:18]} (35.
Re8+ Kf6 36. Kg2) 35... g5 {[%emt 0:02:04][%cal Yg6g5,Yg5f4,Yf4f3]} 36. Rh8 {
[%emt 0:00:00]} f4 {[%emt 0:01:03]} 37. gxf4 {[%emt 0:00:45]} gxf4 {[%emt 0:00:
05]} 38. Re8+ {[%emt 0:00:59]} Kf5 {[%emt 0:00:22]} 39. Kf1 {[%emt 0:00:22]} f3
{[%emt 0:00:17]} 40. Rf8+ {[%emt 0:00:37]} Ke4 {[%emt 0:00:32] ( -> ...Nc4)}
41. Rc8 {[%emt 0:06:55] Prevents Nc4.} Kd3 {[%emt 0:02:22]} 42. Re8 {[%emt 0:
03:01]} Nc4 {[%emt 0:00:34] Weighted Error Value: White=0.94/Black=0.05 
(flawless)} 0-1

[Event "44th Chess Olympiad Open 2022"]
[Site "Chennai"]
[Date "2022.07.29"]
[Round "1.23"]
[White "Vella, Duncan"]
[Black "Ivanisevic, Ivan"]
[Result "0-1"]
[WhiteElo "1985"]
[BlackElo "2561"]
[Annotator "TA"]
[PlyCount "68"]
[EventDate "2022.??.??"]
[TimeControl "60"]

{[%evp 19,68,0,0,-71,-64,-70,-53,-112,-112,-106,-108,-97,-109,-131,-143,-132,
-116,-145,-146,-202,-192,-249,-232,-380,-363,-393,-311,-657,-656,-606,-641,
-589,-282,-274,-278,-283,-279,-367,-362,-560,-527,-618,-610,-550,-456,-1307,
-1254,-12834,-12833,-5705,-1641]} 1. e4 {[%emt 0:00:07]} e5 {[%emt 0:00:08]} 2.
Nf3 {[%emt 0:00:13]} Nc6 {[%emt 0:00:06]} 3. d4 {[%emt 0:00:20]} exd4 {[%emt 0:
00:00]} 4. Nxd4 {[%emt 0:00:06]} Bc5 {[%emt 0:00:59]} 5. Nb3 {[%emt 0:00:47]}
Bb6 {[%emt 0:00:10]} 6. Nc3 {[%emt 0:00:47]} a5 {[%emt 0:00:46]} 7. a4 {
[%emt 0:03:44]} Nb4 {[%emt 0:00:52]} 8. Nd5 {[%emt 0:05:44]} Nxd5 {[%emt 0:00:
00]} 9. exd5 {[%emt 0:02:33]} Qf6 {[%emt 0:16:11]} 10. Qe2+ {[%emt 0:07:22]}
Ne7 {[%emt 0:00:00]} 11. g3 {[%emt 0:05:40] [#] C45: Scotch Game.} (11. Be3 $11
{keeps the balance.}) 11... d6 $146 {[%emt 0:00:00] Hoping for ...0-0.} ({
Predecessor:} 11... O-O 12. Bg2 d6 13. O-O Ng6 14. h3 Bd7 15. c3 Rfe8 16. Qd1
Re7 17. Nd4 Rae8 18. Be3 h6 {½-½ (41) Kaula,I (2025)-Guzik,J Wisla 1998}) 12.
Bg2 {[%emt 0:05:26]} Bg4 {[%emt 0:00:00]} 13. f3 {[%emt 0:09:10]} ({Better is} 
13. Qb5+ $1 $15 Bd7 14. Qe2) 13... Bd7 {[%emt 0:13:20] [#] aiming for ...0-0.}
14. Be3 {[%emt 0:11:24]} Bxe3 {[%emt 0:00:00]} 15. Qxe3 {[%emt 0:00:02]} O-O {
[%emt 0:00:00]} 16. Qd2 {[%emt 0:05:54]} Qxb2 {[%emt 0:02:48]} 17. O-O {
[%emt 0:00:50]} Qf6 {[%emt 0:00:06]} 18. Rfe1 {[%emt 0:06:39]} b6 {[%emt 0:00:
00]} 19. c4 {[%emt 0:02:18]} (19. Qd4 $17 Qxd4+ 20. Nxd4) 19... Nf5 $19 {
[%emt 0:00:00][%cal Ye7f5,Yf5e3,Ye3c2]} 20. Qf2 {[%emt 0:11:25]} (20. Re4 $142)
20... Rfe8 {[%emt 0:00:00]} 21. Re4 {[%emt 0:01:31]} (21. Rec1 {was necessary.}
) 21... Qc3 {[%emt 0:00:00]} 22. Qa2 {[%emt 0:04:35]} Ne3 {[%emt 0:02:50]} 23.
Nd2 $2 {[%emt 0:06:53] [#]} (23. Rc1 Qb4 24. Nd2) 23... f5 {[%emt 0:03:23]} 24.
Rxe8+ {[%emt 0:00:39]} Rxe8 {[%emt 0:00:07]} 25. Re1 {[%emt 0:05:09]} Qc2 {
[%emt 0:04:31]} (25... Kf7 $142 26. Bh3 Qd4) 26. Qxc2 {[%emt 0:00:33]} Nxc2 {
[%emt 0:02:03]} 27. Rxe8+ {[%emt 0:01:45]} Bxe8 {[%emt 0:00:00] Endgame KBN-KBN
} 28. Bh3 {[%emt 0:00:15]} g6 {[%emt 0:00:28][%cal Yg7g6,Yg6f5]} 29. g4 {
[%emt 0:00:08]} (29. Bf1 $142) 29... Bxa4 {[%emt 0:00:42] Black is clearly
winning.} 30. gxf5 {[%emt 0:00:21]} Bd7 {[%emt 0:01:40]} 31. Ne4 {[%emt 0:01:
44]} Bxf5 {[%emt 0:00:00]} 32. Nf6+ {[%emt 0:00:36]} (32. Bxf5 $142 gxf5 33.
Nc3) 32... Kf7 {[%emt 0:00:03]} 33. Bxf5 {[%emt 0:00:07]} gxf5 {[%emt 0:00:05]}
34. Nxh7 {[%emt 0:00:24]} a4 {[%emt 0:00:19] Black took control after the
opening. Weighted Error Value: White=1.17/Black=0.19 (very precise)} 0-1

[Event "44th Chess Olympiad Open 2022"]
[Site "Chennai"]
[Date "2022.07.29"]
[Round "1.24"]
[White "Mchedlishvili, Mikheil"]
[Black "Mwale, Joseph"]
[Result "1-0"]
[WhiteElo "2593"]
[BlackElo "2131"]
[Annotator "TA"]
[PlyCount "127"]
[EventDate "2022.??.??"]
[TimeControl "60"]

{[%evp 16,127,27,37,94,87,74,52,57,52,63,51,106,91,95,88,84,93,133,70,126,100,
170,156,158,131,165,121,105,108,139,67,79,59,71,68,64,1,15,8,27,32,26,15,45,30,
59,25,50,10,49,56,79,47,72,66,223,204,199,121,120,119,123,116,111,125,94,101,
187,175,182,124,124,116,123,131,364,372,643,649,579,633,614,602,654,583,743,
654,654,611,4133,777,1089,998,1610,1583,1413,904,6348,5102,4106,1061,885,791,
748,682,29981,29980,29985,29980,29982,29983,29981,5312]} 1. d4 {[%emt 0:00:05]}
Nf6 {[%emt 0:00:08]} 2. c4 {[%emt 0:00:25]} e6 {[%emt 0:00:08]} 3. Nc3 {
[%emt 0:00:22]} Bb4 {[%emt 0:00:28]} 4. Qc2 {[%emt 0:00:30]} c5 {[%emt 0:02:26]
} 5. dxc5 {[%emt 0:10:46]} Bxc5 {[%emt 0:11:30]} 6. Nf3 {[%emt 0:00:00]} Nc6 {
[%emt 0:01:56]} 7. Bf4 {[%emt 0:08:11]} d5 {[%emt 0:31:11]} 8. e3 {[%emt 0:00:
00]} O-O {[%emt 0:01:15]} 9. a3 {[%emt 0:00:00]} b6 {[%emt 0:11:40] D37:
Queen's Gambit Declined: 5 Bf4.} (9... Qa5 $14) 10. Rd1 {[%emt 0:00:00]} Bb7 {
[%emt 0:11:04]} 11. Be2 {[#]} h6 $146 {[%emt 0:12:58] White is slightly better.
} ({Predecessor:} 11... Rc8 12. O-O a5 13. cxd5 exd5 14. Bg5 Ne7 15. Bxf6 gxf6
16. Bd3 Ng6 17. Bf5 Rc7 18. Qa4 Bc6 19. Qg4 Kh8 20. Qh5 Rg8 21. Be4 dxe4 22.
Rxd8 Rxd8 23. Qf5 Be7 24. Nxe4 Rd5 25. Qh3 {1-0 (25) Hracek,Z (2563)-Vorisek,J
(2205) Plzen 2020}) 12. cxd5 {[%emt 0:05:36]} exd5 {[%emt 0:00:00]} 13. O-O {
[%emt 0:12:08]} Qd7 {[%emt 0:00:00]} (13... Bd6 $14) 14. Bg3 {[%emt 0:07:17]}
Rfd8 {[%emt 0:02:57]} 15. Bh4 {[%emt 0:03:06]} g5 {[%emt 0:00:00]} 16. Bg3 {
[%emt 0:00:00][%cal Yc3d5] Black must now prevent Nxd5!} Qe6 {[%emt 0:04:33]}
17. b4 {[%emt 0:06:59]} (17. Nb5 $1 $16) 17... Bd6 {[%emt 0:02:44]} (17... Bf8
$14) 18. Bxd6 {[%emt 0:02:17]} Rxd6 {[%emt 0:00:00]} (18... Qxd6 $16 {was
called for.} 19. Nb5 Qe7) 19. Nb5 $18 {[%emt 0:03:15]} Rd7 {[%emt 0:00:00]
Prevents Nc7.} 20. Nfd4 {[%emt 0:01:54]} Nxd4 {[%emt 0:00:00]} 21. Nxd4 {
[%emt 0:00:00]} ({Worse is} 21. Rxd4 Rc8 22. Qb3 a6 $15) 21... Qe5 {[%emt 0:00:
00]} 22. Qb3 {[%emt 0:03:15]} Re7 {[%emt 0:13:24]} 23. Qb2 {[%emt 0:01:18]} ({
White should try} 23. f4 $16 gxf4 24. Rxf4) 23... Rc8 {[%emt 0:00:00]} 24. Kh1
{[%emt 0:09:11] Strongly threatening f4.} g4 {[%emt 0:01:32]} 25. Bd3 {[%emt 0:
00:00]} Ne4 {[%emt 0:00:00]} 26. f3 {[%emt 0:00:00]} (26. a4 $14) 26... Nd6 $1
$11 {[%emt 0:04:15]} 27. Qf2 {[%emt 0:00:57]} g3 {[%emt 0:00:00]} 28. hxg3 {
[%emt 0:05:14]} Qxe3 {[%emt 0:00:00]} 29. Qb2 {[%emt 0:00:06]} Qe5 {[%emt 0:00:
00]} 30. g4 {[%emt 0:04:21][%cal Yf1e1]} Qf6 {[%emt 0:05:21]} 31. Qd2 {[%emt 0:
00:00][%cal Ya3a4]} Rce8 32. Qf2 {[%emt 0:01:27]} (32. b5 $5) 32... Qg5 {
[%emt 0:00:22]} 33. Qg3 {[%emt 0:00:00]} Rd8 {[%emt 0:00:00]} 34. Rfe1 {
[%emt 0:03:44]} Rxe1+ {[%emt 0:00:00]} 35. Rxe1 {[%emt 0:00:17]} ({Of course
not} 35. Qxe1 h5 $11) 35... Re8 $2 {[%emt 0:00:00]} ({Better is} 35... Rc8 $14)
36. Rxe8+ $18 {[%emt 0:01:47]} Nxe8 {[%emt 0:00:00] [#]} 37. Nf5 {[%emt 0:00:
00] Against Qe3} (37. Bb5 $1 $18 {[%cal Rb5e8]}) 37... Bc8 $16 {[%emt 0:00:00]}
38. Qe5 {[%emt 0:00:11][%csl Yd5,Ye8]} Be6 {[%emt 0:00:31]} 39. f4 {[%emt 0:00:
00] 0x0.0005eb62b2d4dp-1022s more active pieces.} Qf6 {[%emt 0:00:26] [#]} 40.
Qxf6 $1 {[%emt 0:00:28]} Nxf6 {[%emt 0:00:00]} 41. Nxh6+ {[%emt 0:03:16]
Endgame KBN-KBN} Kf8 (41... Kg7 $16 {keeps fighting.}) 42. g5 $18 {[%emt 0:00:
20]} Nh5 {[%emt 0:00:00]} 43. g3 {[%emt 0:06:20]} (43. f5 $18) 43... Nxg3+ $16
{[%emt 0:00:00]} 44. Kg2 {[%emt 0:00:00]} Nh5 {[%emt 0:08:35]} 45. Kf3 {
[%emt 0:03:47]} Ke7 $2 {[%emt 0:02:18]} (45... Bh3 $16 {is a better defense.}
46. Bf5 Bf1) 46. f5 $18 {[%emt 0:00:00]} Bd7 {[%emt 0:00:05]} (46... Bc8 47.
f6+ Nxf6) 47. f6+ {[%emt 0:03:28]} Nxf6 {[%emt 0:10:10]} 48. gxf6+ {[%emt 0:00:
00]} Kxf6 {[%emt 0:00:01]} 49. Kf4 {[%emt 0:00:00]} Bc6 {[%emt 0:00:00]} 50.
Nf5 {[%emt 0:00:00]} Be8 {[%emt 0:00:36]} 51. Nd4 {[%emt 0:00:00] Hoping for
Bb5.} Bd7 {[%emt 0:00:16]} 52. Bf1 {[%emt 0:00:00]} Be8 {[%emt 0:00:00]} 53.
Bg2 {[%emt 0:00:00]} (53. Bb5 $142 Bxb5 54. Nxb5) 53... Ke7 {[%emt 0:00:00]}
54. Ke5 {[%emt 0:00:00]} Kd7 {[%emt 0:00:31]} 55. Kxd5 {[%emt 0:00:00] aiming
for Bf1.} Kc7 {[%emt 0:00:36]} 56. Bh3 {[%emt 0:00:00]} f6 {[%emt 0:00:00]} 57.
Ne6+ {[%emt 0:00:00]} Kb7 {[%emt 0:00:06]} 58. Bf1 {[%emt 0:00:00]} (58. Kd6
$142 Bg6 59. Bg2+ Kc8 60. Nf4) 58... Bf7 {[%emt 0:00:40]} 59. Kd6 {[%emt 0:01:
17] Intending Nd8+ and mate.} Bh5 {[%emt 0:00:11]} 60. Nd4 {[%emt 0:00:00]} a5
{[%emt 0:01:03]} 61. b5 {[%emt 0:00:14] White mates.} Be8 {[%emt 0:00:00]} 62.
Bg2+ {[%emt 0:00:09]} Kb8 {[%emt 0:00:20]} 63. Nc6+ {[%emt 0:00:09]} Kb7 {
[%emt 0:00:49]} 64. Nxa5+ {[%emt 0:00:07] Weighted Error Value: White=0.16 
(very precise) /Black=0.53} (64. Ne7+ $142 Kb8 65. a4 f5 66. Nxf5 Kc8 67. Ne7+
Kd8 68. Nc6+ Kc8 69. Bh3+ Kb7 70. Nd8+ Kb8 71. Bf5) 1-0